bitfinex/quotes_SOLUSD_20220228
["timestamp","ask_amount","ask_price","bid_price","bid_amount"]
[1646047024663,23.6197,90.163,90.081,5.37052866]
[1646047025085,23.6197,90.163,90.082,2.74678921]
[1646047025967,110.6,90.162,90.082,2.74678921]
[1646047026167,1.82905706,90.161,90.082,2.74678921]
[1646047029469,23.6197,90.163,90.082,2.74678921]
[1646047029669,23.6197,90.163,90.083,110.6]
[1646047029869,23.6197,90.163,90.084,3.0751322]
[1646047030068,23.6197,90.163,90.085,110.6]
[1646047030274,23.6197,90.163,90.086,2.32029209]
[1646047030471,23.6197,90.163,90.09,16.01]
[1646047030671,23.6197,90.163,90.091,2.44524679]
[1646047030873,23.6197,90.163,90.091,5.192036]
[1646047034699,23.6197,90.163,90.091,2.74678921]
[1646047034899,23.6197,90.163,90.092,2.74678921]
[1646047035698,23.6197,90.163,90.082,2.74678921]
[1646047035999,110.6,90.159,90.05,16.01]
[1646047036310,1.48553034,90.158,90.04,2.74678921]
[1646047036503,110.6,90.157,90.047,2.89399519]
[1646047036703,1.55180088,90.156,90.048,23.5039]
[1646047036903,1.55180088,90.156,90.049,2.73959102]
[1646047037203,1.55180088,90.156,90.05,16.01]
[1646047037403,1.55180088,90.156,90.05,38.55]
[1646047037704,1.55180088,90.156,90.051,110.6]
[1646047037902,1.55180088,90.156,90.051,5.72683023]
[1646047038906,1.55180088,90.156,90.052,2.74678921]
[1646047042611,1.55180088,90.156,90.053,177.03]
[1646047042811,1.55180088,90.156,90.054,3.07139065]
[1646047043011,1.55180088,90.156,90.055,177.03]
[1646047043212,1.55180088,90.156,90.056,2.64511729]
[1646047043411,23.6197,90.163,90.071,110.6]
[1646047043612,23.6197,90.163,90.073,177.03]
[1646047043812,23.6197,90.163,90.072,22.7431]
[1646047043813,23.6197,90.163,90.074,2.70683711]
[1646047044813,112.6,90.149,90.074,2.70683711]
[1646047045413,223.2,90.149,90.072,39.7689]
[1646047045613,110.6,90.147,90.072,22.7431]
[1646047045813,24.7187,90.148,90.072,22.7431]
[1646047047114,24.7187,90.148,90.072,39.6723]
[1646047047514,24.7187,90.148,90.072,22.7431]
[1646047048715,24.2187,90.148,90.072,22.7431]
[1646047054423,24.2187,90.148,90.073,2.78513189]
[1646047058528,134.8187,90.148,90.073,2.78513189]
[1646047058728,134.8187,90.148,90.072,22.7431]
[1646047059553,24.2187,90.148,90.072,22.7431]
[1646047062357,134.8187,90.148,90.072,22.7431]
[1646047062557,24.2187,90.148,90.072,22.7431]
[1646047063159,134.8187,90.148,90.072,22.7431]
[1646047063357,24.2187,90.148,90.072,22.7431]
[1646047063557,24.2187,90.148,90.072,25.78685674]
[1646047064759,134.8187,90.148,90.072,22.7431]
[1646047065360,1.43900944,90.147,90.072,22.7431]
[1646047070166,24.2187,90.148,90.072,22.7431]
[1646047070563,134.8187,90.148,90.072,22.7431]
[1646047070764,1.49029746,90.147,90.072,22.7431]
[1646047072666,110.6,90.146,90.072,22.7431]
[1646047072863,1.3838953,90.145,90.072,22.7431]
[1646047073464,1.3838953,90.145,90.05,22.54]
[1646047073663,110.6,90.139,90.051,22.7733]
[1646047073863,110.6,90.137,90.051,22.7733]
[1646047074063,1.436737,90.136,90.051,22.7733]
[1646047074265,110.6,90.134,90.051,22.7733]
[1646047074468,1.72836002,90.133,90.051,22.7733]
[1646047079773,1.75414799,90.118,90.0,16.01]
[1646047079975,1.75414799,90.118,89.991,34.52466701]
[1646047080174,110.6,90.116,90.001,23.4939438]
[1646047080375,1.41124678,90.115,90.001,23.4939438]
[1646047080575,159.09360307,90.109,89.993,23.4939438]
[1646047080774,1.59665918,90.108,89.994,2.48604135]
[1646047081275,4.34344839,90.108,89.994,2.48604135]
[1646047081477,110.6,90.106,89.995,23.4939438]
[1646047081673,1.39677393,90.105,89.996,2.9659076]
[1646047081873,110.6,90.104,89.996,2.9659076]
[1646047082074,110.6,90.099,89.996,2.9659076]
[1646047082273,1.57146151,90.098,89.997,23.4939438]
[1646047082473,110.6,90.097,89.998,2.65993435]
[1646047082672,1.55483822,90.096,89.998,2.65993435]
[1646047083077,1.55483822,90.096,89.999,23.4939438]
[1646047084074,1.36454536,90.116,90.005,177.03]
[1646047084274,1.36454536,90.116,90.006,159.9799]
[1646047084474,1.36454536,90.116,90.013,110.6]
[1646047084673,23.3395,90.131,90.016,2.78461581]
[1646047084674,1.4907395,90.129,90.016,2.78461581]
[1646047084875,1.4907395,90.129,90.02,16.01]
[1646047085097,1.4907395,90.129,90.021,25.90544328]
[1646047085275,1.4907395,90.129,90.022,113.42521229]
[1646047085474,1.4907395,90.129,90.023,2.34731696]
[1646047088080,23.299,90.106,90.023,2.34731696]
[1646047090484,110.6,90.105,90.021,23.4206]
[1646047090686,1.52468196,90.104,90.021,23.4206]
[1646047094203,23.299,90.106,90.021,23.4206]
[1646047094403,1.61523734,90.105,90.021,23.4206]
[1646047094606,23.299,90.106,90.022,2.48630786]
[1646047096505,1.45039636,90.105,90.021,23.4206]
[1646047096707,23.299,90.106,90.022,2.86504602]
[1646047099508,23.299,90.106,90.027,2.29656981]
[1646047099709,23.299,90.106,90.04,16.01]
[1646047099908,79.5927,90.148,90.04,16.01]
[1646047099909,110.6,90.157,90.047,110.6]
[1646047100110,1.48548702,90.176,90.06,16.01]
[1646047100310,24.1008,90.148,90.062,113.10370604]
[1646047100512,24.1008,90.148,90.063,2.82351459]
[1646047100708,24.1008,90.148,90.063,25.99255139]
[1646047100908,53.69355391,90.147,90.064,2.35084052]
[1646047101112,53.69355391,90.147,90.064,112.95084052]
[1646047101311,53.69355391,90.147,90.065,2.72908694]
[1646047101708,53.69355391,90.147,90.065,128.25279053]
[1646047101910,53.69355391,90.147,90.067,110.6]
[1646047102211,53.69355391,90.147,90.068,2.88527211]
[1646047102410,53.69355391,90.147,90.071,2.29241042]
[1646047102811,164.29355391,90.147,90.071,2.29241042]
[1646047103012,53.69355391,90.147,90.071,2.29241042]
[1646047103212,53.69355391,90.147,90.072,23.4202]
[1646047103814,53.69355391,90.147,90.073,2.68460834]
[1646047104913,164.29355391,90.147,90.072,23.4202]
[1646047105813,164.29355391,90.147,90.072,40.2264]
[1646047107714,164.29355391,90.147,90.072,23.4202]
[1646047107916,164.29355391,90.147,90.072,39.8452]
[1646047108115,164.29355391,90.147,90.072,23.4202]
[1646047108516,164.29355391,90.147,90.072,39.8052]
[1646047108918,53.69355391,90.147,90.072,39.8052]
[1646047109117,1.68309913,90.175,90.08,16.01]
[1646047109315,23.8875,90.197,90.081,69.50182626]
[1646047109518,23.8875,90.197,90.082,3.02088881]
[1646047109717,23.8875,90.197,90.083,66.43]
[1646047109916,23.8875,90.197,90.085,177.03]
[1646047110219,110.6,90.174,90.086,2.30520699]
[1646047110419,1.49455836,90.173,90.086,2.74678921]
[1646047110620,1.49455836,90.173,90.061,23.0966]
[1646047110818,1.50015736,90.171,90.061,23.0966]
[1646047111019,110.6,90.172,90.061,23.0966]
[1646047111020,1.61375002,90.168,90.061,23.0966]
[1646047111521,110.6,90.166,90.061,23.0966]
[1646047111720,1.57082002,90.165,90.061,23.0966]
[1646047112120,110.6,90.163,90.061,23.0966]
[1646047112319,1.81325376,90.162,90.061,23.0966]
[1646047115321,110.6,90.161,90.061,23.0966]
[1646047115522,1.55465598,90.16,90.061,23.0966]
[1646047116123,110.6,90.159,90.061,23.0966]
[1646047116323,1.79960488,90.158,90.061,23.0966]
[1646047116725,2.33024534,90.157,90.061,23.0966]
[1646047118424,110.6,90.156,90.061,23.0966]
[1646047118625,1.84485354,90.155,90.061,23.0966]
[1646047128735,1.84485354,90.155,90.061,25.84338921]
[1646047128933,1.57312835,90.162,90.061,25.84338921]
[1646047129632,1.57312835,90.162,90.062,2.93963034]
[1646047130032,1.57312835,90.162,90.063,2.74678921]
[1646047132837,1.57312835,90.162,90.062,2.93963034]
[1646047134063,1.57312835,90.162,90.061,23.0966]
[1646047134563,1.50537384,90.158,90.061,23.0966]
[1646047140469,1.50537384,90.158,90.061,25.55943405]
[1646047141671,110.6,90.159,90.062,2.32629282]
[1646047142075,110.6,90.159,90.062,5.07308203]
[1646047143272,110.6,90.159,90.062,2.32629282]
[1646047144472,1.82763075,90.158,90.062,2.32629282]
[1646047149283,1.82763075,90.158,90.062,5.07308203]
[1646047150081,16.01,90.16,90.062,5.07308203]
[1646047150282,16.01,90.16,90.065,66.43]
[1646047150481,24.4801,90.164,90.066,2.39728514]
[1646047150683,24.4801,90.164,90.08,16.01]
[1646047150884,24.4801,90.164,90.081,26.4159134]
[1646047151084,24.4801,90.164,90.082,2.83261361]
[1646047151284,24.4801,90.164,90.084,110.6]
[1646047151487,1.50860738,90.21,90.086,113.59622525]
[1646047151683,22.7712,90.197,90.1,16.01]
[1646047151884,22.7712,90.197,90.102,2.71177518]
[1646047152284,22.7712,90.197,90.102,113.31177518]
[1646047152604,55.9383385,90.195,90.112,110.6]
[1646047152785,55.9383385,90.195,90.115,66.43]
[1646047152984,55.9383385,90.195,90.116,2.60957741]
[1646047153184,55.9383385,90.195,90.116,19.32524712]
[1646047153486,55.9383385,90.195,90.121,2.93588066]
[1646047157787,110.6,90.194,90.12,16.01]
[1646047158389,110.6,90.194,90.11,16.7155]
[1646047158590,110.6,90.192,90.11,16.7155]
[1646047158989,55.9383385,90.195,90.111,113.3632747]
[1646047159188,55.9383385,90.195,90.112,3.12203304]
[1646047159589,55.9383385,90.195,90.114,2.62405199]
[1646047159789,55.9383385,90.195,90.114,25.17075199]
[1646047159988,55.9383385,90.195,90.115,2.60055191]
[1646047160389,110.6,90.194,90.115,2.60055191]
[1646047160689,112.28418253,90.194,90.114,22.5467]
[1646047160890,112.28418253,90.194,90.092,2.74678921]
[1646047161090,1.59153175,90.191,90.085,25.92237628]
[1646047161293,1.59153175,90.191,90.07,18.47560095]
[1646047161492,1.59153175,90.191,90.072,2.93881742]
[1646047161891,1.59153175,90.191,90.073,23.46199487]
[1646047162090,1.59153175,90.191,90.073,49.38437115]
[1646047162290,1.59153175,90.191,90.074,2.4203046]
[1646047162492,1.59153175,90.191,90.075,2.72980001]
[1646047162793,1.59153175,90.191,90.076,2.3210086]
[1646047162990,1.59153175,90.191,90.077,2.25300694]
[1646047163192,1.59153175,90.191,90.077,23.46199487]
[1646047163391,1.59153175,90.191,90.078,2.97145968]
[1646047163891,1.83740903,90.188,90.078,2.97145968]
[1646047164090,1.83740903,90.188,90.076,25.92237628]
[1646047164291,1.83740903,90.188,90.071,46.4603]
[1646047164692,2.70743808,90.187,90.071,46.4603]
[1646047166495,2.70743808,90.187,90.071,75.06487114]
[1646047167699,2.70743808,90.187,90.071,72.38267628]
[1646047170203,2.70743808,90.187,90.072,27.64517058]
[1646047170401,2.70743808,90.187,90.073,3.07795349]
[1646047170610,2.70743808,90.187,90.073,29.00032977]
[1646047170802,2.70743808,90.187,90.074,55.96257322]
[1646047171003,2.70743808,90.187,90.075,2.86513595]
[1646047171203,2.70743808,90.187,90.08,16.01]
[1646047171404,2.70743808,90.187,90.081,2.33806544]
[1646047171802,2.70743808,90.187,90.083,2.5150775]
[1646047172503,2.70743808,90.187,90.085,2.74767932]
[1646047173002,2.70743808,90.187,90.082,23.3821]
[1646047173203,110.6,90.179,90.07,25.92237628]
[1646047173403,1.45795085,90.178,90.052,24.5916]
[1646047173602,1.51711696,90.176,90.052,24.5916]
[1646047173803,1.51711696,90.176,90.052,41.4335]
[1646047174006,26.44410084,90.175,90.052,41.4335]
[1646047174209,110.6,90.159,90.052,41.4335]
[1646047174407,162.26435212,90.157,90.052,41.4335]
[1646047174610,1.74912003,90.156,90.052,41.4335]
[1646047176628,1.74912003,90.156,90.053,24.27570961]
[1646047177828,1.74912003,90.156,90.054,2.69149752]
[1646047179228,1.74912003,90.156,90.053,24.27570961]
[1646047186033,1.74912003,90.156,90.052,24.5916]
[1646047186434,2.33024534,90.155,90.052,24.5916]
[1646047186635,2.30024534,90.155,90.052,24.5916]
[1646047186836,1.74912003,90.156,90.052,24.5916]
[1646047187234,2.30024534,90.155,90.052,24.5916]
[1646047187837,1.72369108,90.154,90.052,24.5916]
[1646047188036,110.6,90.149,90.052,24.5916]
[1646047188235,1.72890212,90.148,90.052,24.5916]
[1646047188436,110.6,90.147,90.043,24.189]
[1646047188637,110.6,90.147,90.027,24.27570961]
[1646047188836,1.37206729,90.144,90.027,24.27570961]
[1646047189037,110.6,90.129,90.016,16.9303]
[1646047189338,110.6,90.125,90.017,23.6928]
[1646047189536,110.6,90.119,90.017,23.6928]
[1646047189736,1.67206342,90.118,90.017,23.6928]
[1646047189937,1.67206342,90.118,90.017,50.22184294]
[1646047190139,1.67206342,90.118,90.017,23.6928]
[1646047190436,1.49224798,90.115,90.017,23.6928]
[1646047192037,1.49224798,90.115,90.018,29.51065503]
[1646047192237,1.49224798,90.115,90.017,23.6928]
[1646047193743,1.49224798,90.115,90.017,50.22184294]
[1646047194643,1.49224798,90.115,90.018,2.34696442]
[1646047196246,1.49224798,90.115,90.017,50.22184294]
[1646047196446,1.49224798,90.115,90.018,2.83133488]
[1646047196647,1.49224798,90.115,90.017,50.22184294]
[1646047196848,16.01,90.1,90.004,26.52904294]
[1646047197051,1.36675544,90.098,90.004,26.52904294]
[1646047197249,61.23539227,90.098,89.971,23.4475]
[1646047197455,177.03,90.097,89.971,23.4475]
[1646047197652,1.55116804,90.096,89.971,23.4475]
[1646047197856,177.03,90.095,89.954,24.6722]
[1646047198153,177.03,90.079,89.954,24.6722]
[1646047198356,1.59698378,90.078,89.954,24.6722]
[1646047198552,110.6,90.069,89.954,24.6722]
[1646047198752,16.01,90.06,89.954,24.6722]
[1646047198958,110.6,90.059,89.954,24.6722]
[1646047199161,1.48081976,90.058,89.942,23.6121]
[1646047199359,110.6,90.056,89.942,23.6121]
[1646047199560,1.87390607,90.055,89.942,23.6121]
[1646047200163,1.87390607,90.055,89.931,2.299124]
[1646047200364,110.6,90.049,89.923,25.15213228]
[1646047200562,1.42299542,90.048,89.923,25.15213228]
[1646047200765,110.6,90.037,89.923,22.786]
[1646047200967,1.4903564,90.034,89.923,22.786]
[1646047201165,110.6,90.019,89.923,22.786]
[1646047201379,110.6,90.017,89.908,2.73641092]
[1646047201579,1.47628816,90.016,89.908,2.73641092]
[1646047201778,1.47628816,90.016,89.924,2.74678921]
[1646047203580,110.6,90.017,89.924,2.74678921]
[1646047204478,110.6,90.017,89.925,24.0901]
[1646047204679,110.6,90.017,89.926,2.89398229]
[1646047204882,110.6,90.017,89.926,5.6407715]
[1646047205080,110.6,90.017,89.927,2.74678921]
[1646047205483,1.86461099,90.016,89.925,24.0901]
[1646047206686,2.30024534,90.015,89.925,24.0901]
[1646047207283,2.30024534,90.015,89.901,2.53248282]
[1646047207485,2.30024534,90.015,89.894,24.57395171]
[1646047207788,2.30024534,90.015,89.894,2.59091595]
[1646047207987,2.30024534,90.015,89.895,22.5685]
[1646047208385,2.30024534,90.015,89.9,3.01853131]
[1646047208986,110.6,90.009,89.895,22.5685]
[1646047209185,110.6,89.999,89.895,22.5685]
[1646047209385,110.6,89.997,89.895,22.5685]
[1646047209586,1.53525643,89.996,89.895,22.5685]
[1646047209986,1.53525643,89.996,89.883,2.26458229]
[1646047210188,2.30024534,89.995,89.876,2.74678921]
[1646047210788,2.30024534,89.995,89.881,5.71058689]
[1646047211190,2.30024534,89.995,89.882,2.74678921]
[1646047211389,2.30024534,89.995,89.883,22.5728]
[1646047211589,1.38091539,89.993,89.883,22.5728]
[1646047211790,110.6,89.979,89.883,22.5728]
[1646047211990,110.6,89.977,89.883,22.5728]
[1646047212191,110.6,89.975,89.883,22.5728]
[1646047212392,1.40587642,89.974,89.883,22.5728]
[1646047213390,1.40587642,89.974,89.884,2.7341586]
[1646047214790,110.6,89.973,89.884,2.7341586]
[1646047214990,1.56623218,89.972,89.883,22.5728]
[1646047215390,110.6,89.959,89.872,24.3645]
[1646047215590,110.6,89.957,89.872,24.3645]
[1646047215793,1.80573375,89.956,89.872,24.3645]
[1646047216398,1.80573375,89.956,89.82,16.01]
[1646047216593,200.16,89.95,89.802,16.9779]
[1646047216793,110.6,89.947,89.784,5.79884158]
[1646047216991,66.43,89.928,89.784,5.79884158]
[1646047217193,66.43,89.928,89.757,16.9161]
[1646047217194,110.6,89.919,89.757,16.9161]
[1646047217390,110.6,89.909,89.757,16.9161]
[1646047217590,110.6,89.899,89.757,16.9161]
[1646047217798,1.87754209,89.898,89.757,16.9161]
[1646047218397,1.87754209,89.898,89.76,16.01]
[1646047218594,110.6,89.896,89.758,23.18122148]
[1646047218895,110.6,89.896,89.74,32.3296]
[1646047218896,2.11116315,89.895,89.74,32.3296]
[1646047219094,16.01,89.88,89.76,16.01]
[1646047219294,51.42019432,89.879,89.76,16.01]
[1646047219492,51.42019432,89.879,89.748,18.29692654]
[1646047219493,110.6,89.878,89.761,2.74678921]
[1646047219693,2.1144557,89.877,89.761,2.74678921]
[1646047219893,2.1144557,89.877,89.749,2.74678921]
[1646047220095,110.6,89.876,89.75,16.01]
[1646047220297,110.6,89.876,89.746,77.4991]
[1646047220298,1.59049355,89.875,89.746,77.4991]
[1646047220695,110.6,89.873,89.746,77.4991]
[1646047220899,110.6,89.859,89.746,77.4991]
[1646047221095,110.6,89.857,89.746,77.4991]
[1646047221295,1.82975821,89.856,89.746,77.4991]
[1646047221695,2.70743808,89.855,89.738,16.7152]
[1646047221895,2.70743808,89.855,89.74,16.01]
[1646047222095,2.70743808,89.855,89.733,23.18755186]
[1646047222297,1.82975821,89.856,89.741,21.07025987]
[1646047222697,1.82975821,89.856,89.742,2.74678921]
[1646047223296,1.82975821,89.856,89.742,15.59104092]
[1646047223696,1.82975821,89.856,89.743,23.81704908]
[1646047223897,1.82975821,89.856,89.743,2.74678921]
[1646047224097,1.82975821,89.856,89.744,2.74678921]
[1646047224297,112.42975821,89.856,89.744,2.74678921]
[1646047224497,2.12258507,89.855,89.74,16.01]
[1646047224897,110.6,89.845,89.713,12.84425171]
[1646047225096,110.6,89.827,89.662,7.0]
[1646047225296,112.4648223,89.819,89.685,2.74678921]
[1646047225497,1.7673093,89.816,89.685,2.74678921]
[1646047225696,1.7673093,89.816,89.67,16.01]
[1646047225897,110.6,89.814,89.67,16.01]
[1646047226099,162.83655241,89.799,89.687,2.74678921]
[1646047226299,1.72065085,89.798,89.687,2.74678921]
[1646047226499,1.72065085,89.798,89.67,16.6646]
[1646047226703,1.78691217,89.796,89.67,16.6646]
[1646047226900,110.6,89.795,89.683,2.74678921]
[1646047227102,1.58971212,89.794,89.683,2.74678921]
[1646047227304,16.01,89.79,89.72,2.74678921]
[1646047227501,1.62197016,89.789,89.72,2.74678921]
[1646047228101,112.22197016,89.789,89.72,2.74678921]
[1646047228302,1.84483889,89.788,89.707,2.74678921]
[1646047228512,1.84483889,89.788,89.695,2.74678921]
[1646047228904,1.84483889,89.788,89.671,24.6831]
[1646047229107,1.84483889,89.788,89.69,2.74678921]
[1646047230109,1.84483889,89.788,89.671,24.6831]
[1646047230512,1.84483889,89.788,89.671,41.123]
[1646047231215,1.84483889,89.788,89.689,2.74678921]
[1646047231415,1.84483889,89.788,89.719,3.30386939]
[1646047232214,1.84483889,89.788,89.719,0.55708018]
[1646047236540,1.84483889,89.788,89.66,16.01]
[1646047236541,110.6,89.784,89.66,16.01]
[1646047236739,2.05791928,89.783,89.658,23.3606]
[1646047236940,110.6,89.767,89.659,2.74678921]
[1646047237142,2.12364763,89.766,89.659,2.74678921]
[1646047237743,1.7533573,89.763,89.659,2.74678921]
[1646047238641,1.7533573,89.763,89.66,25.68642886]
[1646047238843,1.7533573,89.763,89.66,41.69642886]
[1646047239043,1.7533573,89.763,89.661,2.74678921]
[1646047239243,1.7533573,89.763,89.661,28.43321807]
[1646047239644,1.7533573,89.763,89.662,28.43321807]
[1646047239842,1.7533573,89.763,89.662,2.74678921]
[1646047240045,1.7533573,89.763,89.663,2.74678921]
[1646047241042,1.7533573,89.763,89.653,46.89471121]
[1646047241245,110.6,89.762,89.664,2.74678921]
[1646047241546,2.42571521,89.761,89.664,2.74678921]
[1646047241745,110.6,89.75,89.628,22.32568621]
[1646047242043,16.01,89.76,89.603,542.48916888]
[1646047242044,1.9789879,89.738,89.603,542.48916888]
[1646047242243,110.6,89.734,89.603,542.48916888]
[1646047242444,2.60970515,89.728,89.603,542.48916888]
[1646047242659,2.60970515,89.728,89.604,2.74678921]
[1646047243044,2.60970515,89.728,89.604,0.24678921]
[1646047243642,2.60970515,89.728,89.59,16.01]
[1646047243844,0.86815765,89.727,89.59,16.01]
[1646047244042,0.86815765,89.727,89.594,23.29769185]
[1646047244245,2.60970515,89.728,89.594,23.29769185]
[1646047244443,2.43610499,89.726,89.595,2.74678921]
[1646047245044,2.0978228,89.723,89.595,2.74678921]
[1646047245244,110.6,89.709,89.595,2.74678921]
[1646047245543,110.6,89.705,89.59,16.01]
[1646047245744,110.6,89.699,89.591,2.74678921]
[1646047245944,2.63350518,89.698,89.591,2.74678921]
[1646047246144,2.63350518,89.698,89.562,16.8196]
[1646047246345,2.18931578,89.697,89.563,66.43]
[1646047246548,2.18931578,89.697,89.571,26.04448106]
[1646047246747,2.63350518,89.698,89.571,26.04448106]
[1646047246944,2.63350518,89.698,89.572,2.74678921]
[1646047247746,2.63350518,89.698,89.572,26.04448106]
[1646047248044,2.63350518,89.698,89.564,66.43]
[1646047248245,2.63350518,89.698,89.57,39.8283]
[1646047248945,2.63350518,89.698,89.571,110.6]
[1646047249146,2.63350518,89.698,89.571,2.74678921]
[1646047249545,2.63350518,89.698,89.57,39.8283]
[1646047249946,2.63350518,89.698,89.577,66.43]
[1646047250146,2.63350518,89.698,89.585,177.03]
[1646047250347,2.44819758,89.705,89.585,177.03]
[1646047250646,2.44819758,89.705,89.591,110.6]
[1646047250846,2.44819758,89.705,89.59,16.01]
[1646047251046,2.44819758,89.705,89.592,2.74678921]
[1646047251047,113.04819758,89.705,89.592,2.74678921]
[1646047251347,2.3890313,89.704,89.592,2.74678921]
[1646047253149,110.6,89.699,89.592,2.74678921]
[1646047253352,2.2904461,89.698,89.59,32.5162]
[1646047254555,2.2904461,89.698,89.572,26.04448106]
[1646047255152,2.2904461,89.698,89.573,110.6]
[1646047255353,2.2904461,89.698,89.573,136.09292898]
[1646047255554,3.09151397,89.704,89.575,177.03]
[1646047255755,110.6,89.699,89.582,66.43]
[1646047255958,110.6,89.699,89.58,16.01]
[1646047255959,2.24297096,89.698,89.585,177.03]
[1646047256656,2.24297096,89.698,89.587,110.6]
[1646047256856,2.24297096,89.698,89.586,28.23971819]
[1646047257059,2.24297096,89.698,89.586,2.74678921]
[1646047257258,2.24297096,89.698,89.586,28.23971819]
[1646047257657,2.24297096,89.698,89.59,16.01]
[1646047257860,2.6140685,89.705,89.591,66.43]
[1646047258058,2.6140685,89.705,89.595,66.43]
[1646047258458,113.2140685,89.705,89.592,28.23971819]
[1646047258659,2.19115404,89.704,89.596,2.74678921]
[1646047258861,2.19115404,89.704,89.6,16.01]
[1646047262365,2.19115404,89.704,89.601,110.6]
[1646047262563,2.19115404,89.704,89.601,2.74678921]
[1646047263462,16.01,89.7,89.601,2.74678921]
[1646047263665,2.09504005,89.698,89.586,47.304]
[1646047264465,2.09504005,89.698,89.587,25.49292898]
[1646047265267,2.09504005,89.698,89.586,47.304]
[1646047265666,2.09504005,89.698,89.586,50.05078921]
[1646047266467,2.09504005,89.698,89.587,25.49292898]
[1646047266671,2.09504005,89.698,89.586,50.05078921]
[1646047267066,2.09504005,89.698,89.587,2.74678921]
[1646047267268,2.09504005,89.698,89.591,177.03]
[1646047267471,69.33226463,89.737,89.591,177.03]
[1646047267681,2.110998,89.705,89.593,177.03]
[1646047267871,48.7722,89.763,89.593,177.03]
[1646047267872,48.7722,89.763,89.631,110.6]
[1646047268072,23.7401,89.804,89.651,177.03]
[1646047268274,2.63831902,89.802,89.661,66.43]
[1646047268471,110.6,89.8,89.661,177.03]
[1646047268674,2.38660676,89.799,89.66,16.01]
[1646047268902,110.6,89.789,89.66,16.01]
[1646047269207,110.6,89.785,89.661,2.74678921]
[1646047269402,2.54767821,89.784,89.661,69.17678921]
[1646047269601,2.54767821,89.784,89.67,200.16]
[1646047269901,2.54767821,89.784,89.68,16.01]
[1646047270301,2.54767821,89.784,89.662,15.42511107]
[1646047270501,110.6,89.783,89.66,16.01]
[1646047270704,2.5697654,89.782,89.664,66.43]
[1646047270901,2.5697654,89.782,89.673,110.6]
[1646047271102,2.5697654,89.782,89.68,16.01]
[1646047271405,2.5697654,89.782,89.69,16.01]
[1646047271800,2.5697654,89.782,89.691,110.6]
[1646047272202,2.5697654,89.782,89.69,16.01]
[1646047272203,2.5697654,89.782,89.695,110.6]
[1646047272501,2.5697654,89.782,89.695,177.03]
[1646047272703,2.5697654,89.782,89.701,177.03]
[1646047272900,2.5697654,89.782,89.7,200.16]
[1646047272901,2.5697654,89.782,89.711,177.03]
[1646047273506,2.5697654,89.782,89.712,2.74678921]
[1646047273706,43.82934883,89.786,89.712,2.74678921]
[1646047274107,2.68067912,89.785,89.711,66.43]
[1646047274803,43.82934883,89.786,89.711,69.17678921]
[1646047275003,43.82934883,89.786,89.716,110.6]
[1646047275206,43.82934883,89.786,89.731,66.43]
[1646047275403,43.82934883,89.786,89.74,16.01]
[1646047275903,2.37497091,89.813,89.74,16.01]
[1646047276105,2.54361964,89.843,89.74,16.01]
[1646047276307,2.54361964,89.843,89.741,66.43]
[1646047276504,22.7628,89.867,89.751,66.43]
[1646047276505,2.30144727,89.866,89.751,66.43]
[1646047276704,2.30144727,89.866,89.76,16.01]
[1646047276904,44.27595133,89.844,89.76,16.01]
[1646047277105,2.2730551,89.843,89.76,16.01]
[1646047277306,2.2730551,89.843,89.761,2.74678921]
[1646047277506,2.2730551,89.843,89.765,110.6]
[1646047277707,2.2730551,89.843,89.78,16.01]
[1646047280908,2.2730551,89.843,89.781,2.74678921]
[1646047284109,44.27595133,89.844,89.781,2.74678921]
[1646047285613,2.46794062,89.859,89.781,2.74678921]
[1646047285810,2.40082042,89.886,89.781,113.34678921]
[1646047286012,2.40082042,89.886,89.781,154.01633342]
[1646047286211,2.40082042,89.886,89.782,2.74678921]
[1646047286610,46.59326763,89.885,89.783,40.66954421]
[1646047286813,2.0646477,89.884,89.783,40.66954421]
[1646047287012,2.0646477,89.884,89.784,43.41633342]
[1646047287413,2.0646477,89.884,89.785,27.99122235]
[1646047287618,2.0646477,89.884,89.785,50.5196131]
[1646047287812,2.0646477,89.884,89.786,154.01633342]
[1646047288013,2.0646477,89.884,89.8,16.01]